bitfinex-derivatives/quotes_ETHF0:USTF0_20250620
["timestamp","ask_amount","ask_price","bid_price","bid_amount"]
[1750432083805,3.2078,2496.5,2495.5,5.2112]
[1750432084109,0.8011,2496.4,2495.6,2.00332]
[1750432084301,3.2078,2496.5,2496.0,0.8012]
[1750432084502,3.2078,2496.5,2496.1,0.80118]
[1750432084702,4.5287,2496.5,2496.2,0.80115]
[1750432084898,4.00878,2496.8,2496.6,0.801]
[1750432085098,34.166,2496.9,2496.4,3.2078]
[1750432085300,7.586,2496.9,2496.8,0.80096]
[1750432086098,34.164,2497.0,2496.9,0.80089]
[1750432086297,46.143,2497.3,2497.2,0.80083]
[1750432086499,91.18612148,2497.3,2496.8,3.2078]
[1750432086701,0.80091,2497.0,2496.7,1.2628]
[1750432086901,91.18612148,2497.3,2496.7,1.2628]
[1750432087100,27.37674,2497.5,2497.4,0.80075]
[1750432087306,0.8008,2497.3,2497.2,0.80082]
[1750432087502,0.80078,2497.4,2497.3,0.80079]
[1750432088204,0.8008,2497.3,2497.2,0.8008]
[1750432088707,27.3758,2497.3,2497.2,0.8008]
[1750432089410,26.575,2497.3,2496.9,1.3042]
[1750432089612,27.37581,2497.3,2497.2,0.80083]
[1750432089798,26.575,2497.3,2497.2,0.80083]
[1750432090510,3.2078,2497.5,2496.9,1.3042]
[1750432090710,0.80082,2497.3,2497.1,0.80083]
[1750432090909,3.2078,2497.5,2496.9,1.3042]
[1750432091405,3.2078,2497.5,2497.2,0.80082]
[1750432091406,0.80082,2497.3,2497.2,0.80082]
[1750432091610,0.80092,2497.0,2496.9,0.80091]
[1750432092205,0.80092,2497.0,2496.8,3.2078]
[1750432092206,26.564,2497.1,2497.0,0.80089]
[1750432092505,26.564,2497.1,2496.9,0.8009]
[1750432092711,0.80091,2497.0,2496.9,0.80091]
[1750432092905,27.36488,2497.1,2496.8,3.2078]
[1750432093105,27.36488,2497.1,2497.0,0.80089]
[1750432093613,0.80089,2497.0,2496.9,0.8009]
[1750432093805,0.80092,2496.9,2496.8,4.00874]
[1750432094113,0.80092,2496.9,2496.8,3.2078]
[1750432094509,10.7938,2496.9,2496.2,2.00288]
[1750432094713,0.80097,2496.8,2496.7,0.80096]
[1750432095012,0.80101,2496.7,2496.6,0.801]
[1750432095212,0.80105,2496.6,2496.5,0.80104]
[1750432095411,0.80109,2496.5,2496.4,0.80108]
[1750432095711,3.2078,2496.6,2496.5,0.80105]
[1750432095912,4.00882,2496.6,2496.5,0.80105]
[1750432096103,0.80106,2496.5,2496.4,0.80106]
[1750432096309,3.2078,2496.6,2496.0,2.00302]
[1750432096510,3.2078,2496.6,2496.5,0.80105]
[1750432096813,26.551,2496.6,2496.3,2.00278]
[1750432097007,0.80105,2496.5,2496.4,2.18867]
[1750432097207,0.80105,2496.5,2496.4,1.3876]
[1750432097511,0.80105,2496.5,2495.8,10.25445]
[1750432097512,0.8011,2496.4,2496.3,0.80111]
[1750432097714,0.80118,2496.1,2496.0,0.8012]
[1750432097909,26.549,2496.2,2496.1,0.80118]
[1750432098510,26.549,2496.2,2496.0,1.3876]
[1750432098511,3.2078,2496.3,2496.2,0.80115]
[1750432098709,3.2078,2496.6,2496.5,0.80105]
[1750432099712,7.587,2497.0,2496.9,0.80091]
[1750432100013,0.80098,2496.8,2496.7,0.80098]
[1750432100213,34.132,2497.0,2496.9,0.80092]
[1750432100407,34.132,2497.0,2496.7,0.80097]
[1750432100706,8.38789,2497.0,2496.9,0.80092]
[1750432100903,34.131,2497.0,2496.7,0.80097]
[1750432101104,34.131,2497.0,2496.6,1.3057]
[1750432101105,0.80099,2496.7,2496.6,2.1067]
[1750432101306,0.80104,2496.6,2496.5,0.80104]
[1750432101518,26.541,2496.7,2496.6,0.80102]
[1750432101519,27.34199,2496.7,2496.6,0.80102]
[1750432101705,26.541,2496.7,2496.3,1.3057]
[1750432101913,0.80108,2496.4,2496.3,2.1068]
[1750432102118,0.80107,2496.5,2496.4,0.80108]
[1750432102314,0.80104,2496.6,2496.5,0.80104]
[1750432102514,0.80106,2496.5,2496.4,0.80106]
[1750432102709,4.00886,2496.5,2496.4,0.80106]
[1750432102910,0.80108,2496.4,2496.3,1.3057]
[1750432103108,26.538,2496.4,2495.8,0.6653]
[1750432103306,26.538,2496.4,2495.4,3.2078]
[1750432103307,16.09201148,2496.0,2495.4,3.2078]
[1750432103515,0.80131,2495.8,2495.7,0.80131]
[1750432103715,0.80131,2495.7,2495.6,0.80132]
[1750432103921,38.13207,2495.9,2495.5,1.3236]
[1750432104113,34.92128,2495.8,2495.7,0.80128]
[1750432104515,3.2078,2495.9,2495.8,0.80128]
[1750432104718,26.535,2496.6,2495.7,14.08892148]
[1750432104915,26.535,2496.6,2496.0,3.2078]
[1750432105116,26.535,2496.6,2496.5,0.80105]
[1750432105618,26.534,2496.7,2496.6,0.801]
[1750432105819,0.80104,2496.6,2496.5,0.80104]
[1750432106014,26.534,2496.7,2496.6,0.80102]
[1750432106414,26.534,2496.7,2496.4,3.3263]
[1750432106415,0.80103,2496.6,2496.5,0.80104]
[1750432106614,0.80105,2496.5,2496.4,2.12466]
[1750432106819,0.80105,2496.5,2496.0,5.21083]
[1750432106820,3.2078,2496.5,2496.0,5.21083]
[1750432107014,0.80114,2496.3,2496.2,0.80114]
[1750432107215,0.80112,2496.3,2496.2,0.80113]
[1750432107612,34.91911,2496.4,2496.3,0.80112]
[1750432107817,34.118,2496.4,2496.3,0.80112]
[1750432108019,34.91909,2496.4,2496.3,0.80112]
[1750432108615,34.9191,2496.4,2496.3,0.80112]
[1750432109421,34.118,2496.4,2496.3,0.80112]
[1750432109611,4.00887,2496.5,2496.4,0.80109]
[1750432109822,29.7298,2496.5,2496.4,0.80109]
[1750432110015,3.2078,2496.5,2496.4,0.80109]
[1750432110318,0.80097,2496.8,2496.7,0.80097]
[1750432110517,26.521,2497.2,2496.3,6.57259]
[1750432110518,0.80101,2496.7,2496.6,0.80101]
[1750432110814,26.521,2496.8,2496.1,2.00292]
[1750432111111,0.80121,2496.0,2495.9,0.80125]
[1750432111315,0.80125,2495.9,2495.8,1.49426]
[1750432111518,3.2078,2496.0,2495.9,0.80125]
[1750432111720,3.2078,2496.0,2495.8,0.80126]
[1750432112019,0.80126,2495.9,2495.8,0.80127]
[1750432112218,3.2078,2496.0,2495.6,1.362]
[1750432112423,0.80125,2495.9,2495.8,0.80125]
[1750432112721,0.80131,2495.7,2495.6,2.16332]
[1750432112922,0.80134,2495.6,2495.4,0.6563]
[1750432113122,3.2078,2495.7,2495.6,0.80134]
[1750432113316,0.80134,2495.6,2495.5,2.06065]
[1750432113513,3.2078,2495.7,2495.6,0.80134]
[1750432113719,27.3212,2496.1,2496.0,0.80121]
[1750432113917,29.7278,2496.1,2495.7,1.2593]
[1750432114223,29.7208,2496.1,2495.8,0.80126]
[1750432114723,29.7208,2496.1,2495.8,0.80127]
[1750432114920,30.522,2496.1,2495.9,0.80125]
[1750432115118,29.7208,2496.1,2496.0,0.80121]
[1750432115320,0.80121,2496.0,2495.9,0.80122]
[1750432115519,30.522,2496.1,2496.0,0.80121]
[1750432116017,29.7208,2496.1,2496.0,0.80121]
[1750432116724,50.47513981,2496.9,2496.0,0.80121]
[1750432116725,3.2078,2496.4,2496.1,2.00296]
[1750432116918,3.2078,2496.4,2496.0,0.80121]
[1750432116919,10.7478,2496.4,2496.3,0.80112]
[1750432117320,3.2078,2496.4,2496.3,0.80112]
[1750432118314,4.00889,2496.4,2496.3,0.80112]
[1750432118519,3.2078,2496.4,2496.3,0.80112]
[1750432118720,4.00889,2496.4,2496.3,0.80112]
[1750432119222,3.2078,2496.4,2496.3,0.80112]
[1750432119825,3.2078,2496.4,2496.1,1.2609]
[1750432120025,0.80113,2496.3,2496.2,0.80114]
[1750432120218,0.80113,2496.3,2496.1,2.06206]
[1750432120418,0.80115,2496.2,2496.1,0.80116]
[1750432120727,0.80123,2496.0,2495.9,0.80123]
[1750432120926,27.29916,2496.2,2496.1,0.80118]
[1750432121226,0.80119,2496.1,2496.0,0.80119]
[1750432121427,0.80124,2496.0,2495.9,0.80123]
[1750432121623,4.00904,2496.0,2495.9,0.80123]
[1750432121825,0.80121,2496.1,2496.0,0.80121]
[1750432122121,28.5009,2496.2,2495.8,1.2641]
[1750432122419,0.80132,2495.7,2495.6,0.80131]
[1750432122821,26.492,2495.8,2495.5,1.2641]
[1750432123021,26.492,2495.8,2495.3,3.2078]
[1750432123218,0.80141,2495.4,2495.3,4.00922]
[1750432123423,27.29137,2495.5,2495.4,0.8014]
[1750432123824,0.80142,2495.4,2495.3,0.80142]
[1750432124024,34.03,2495.5,2494.8,2.68398]
[1750432124230,38.5123,2495.5,2495.0,2.00384]
[1750432124430,0.80143,2495.4,2495.3,0.80143]
[1750432124624,37.2378,2495.5,2495.0,2.00382]
[1750432124827,0.80142,2495.4,2495.3,0.80143]
[1750432125423,38.03918,2495.5,2495.4,0.80141]
[1750432125630,37.2368,2495.5,2495.3,0.80141]
[1750432125818,37.2368,2495.5,2494.9,5.21172]
[1750432125819,0.80141,2495.4,2494.9,5.21172]
[1750432126019,26.486,2495.3,2495.2,0.80144]
[1750432126626,3.2078,2495.5,2495.4,0.80141]
[1750432126822,37.2318,2495.5,2495.4,0.80141]
[1750432127427,38.03317,2495.5,2495.4,0.80141]
[1750432127628,37.2318,2495.5,2495.4,0.80141]
[1750432128228,38.03318,2495.5,2495.2,1.28]
[1750432128427,0.80142,2495.4,2495.3,0.80142]
[1750432129029,0.80144,2495.3,2495.2,0.80147]
[1750432129423,39.23525,2495.5,2494.9,6.49541]
[1750432129632,0.80145,2495.3,2495.2,0.80145]
[1750432129831,0.80155,2495.0,2494.9,0.80155]
[1750432130027,27.27855,2495.0,2494.9,0.80155]
[1750432130328,27.27853,2495.0,2494.8,0.68]
[1750432130533,26.477,2495.0,2494.9,0.80157]
[1750432130734,27.27855,2495.0,2494.9,0.80157]
[1750432130931,26.477,2495.0,2494.9,0.80157]
[1750432133231,10.7498,2495.1,2494.8,0.68]
[1750432133232,37.2208,2495.1,2495.0,0.80153]
[1750432133436,4.00906,2495.9,2495.0,4.00769]
[1750432133634,26.468,2495.8,2495.7,0.80131]
[1750432133842,26.468,2495.8,2495.4,1.2534]
[1750432134134,3.2078,2495.9,2495.5,2.0034]
[1750432134334,34.008,2495.8,2495.7,0.80131]
[1750432134738,3.2078,2495.9,2495.8,0.80128]
[1750432134934,37.2158,2495.9,2495.8,0.80128]
[1750432135241,38.01705,2495.9,2495.8,0.80128]
[1750432135535,37.2158,2495.9,2495.8,0.80128]
[1750432136334,38.01705,2495.9,2495.8,0.80128]
[1750432136535,0.8013,2495.8,2495.4,0.6332]
[1750432136735,26.464,2495.7,2495.6,0.80134]
[1750432138138,3.2078,2495.9,2495.8,0.80128]
[1750432138339,33.997,2495.9,2495.8,0.80128]
[1750432138633,37.2048,2495.9,2495.8,0.80128]
[1750432138836,38.00606,2495.9,2495.8,0.80128]
[1750432139234,0.80129,2495.8,2495.7,0.8013]
[1750432139541,0.80133,2495.7,2495.6,0.80133]
[1750432139738,26.452,2495.7,2495.6,0.80133]
[1750432140256,26.452,2495.7,2495.5,0.80135]
[1750432140438,0.80137,2495.5,2495.4,2.7344]
[1750432140637,26.452,2495.7,2495.4,1.933]
[1750432140839,26.452,2495.7,2495.6,0.80134]
[1750432141039,3.2078,2495.9,2495.6,0.80134]
[1750432141339,29.6538,2496.5,2495.9,2.00311]
[1750432141535,0.8011,2496.4,2496.3,0.8011]
[1750432142044,0.80111,2496.4,2496.3,0.80111]
[1750432142639,3.2078,2496.5,2496.4,0.80109]
[1750432143041,29.6488,2496.8,2496.7,0.80099]
[1750432143341,4.00876,2496.8,2496.7,1.3527]
[1750432143546,0.80108,2496.5,2496.4,0.80109]
[1750432143737,26.44,2496.6,2496.5,0.80103]
[1750432143935,26.439,2496.7,2496.4,2.00272]
[1750432144133,4.00877,2496.8,2496.6,0.80102]
[1750432144336,3.2078,2496.8,2496.7,0.80099]
[1750432144532,30.44576,2496.8,2496.7,0.80099]
[1750432144738,0.801,2496.7,2496.5,1.3527]
[1750432144933,0.801,2496.7,2496.6,0.80101]
[1750432145136,0.80102,2496.6,2496.5,1.3527]
[1750432145437,10.88112148,2496.6,2496.1,2.66915]
[1750432145636,3.2078,2496.8,2496.6,0.801]
[1750432145842,33.923,2496.7,2496.4,0.80107]
[1750432146034,5.21024,2496.8,2496.4,0.80108]
[1750432146236,0.80103,2496.6,2496.5,0.80104]
[1750432146438,33.921,2496.7,2496.2,3.38906]
[1750432146740,33.921,2496.7,2496.3,1.3862]
[1750432147039,0.80109,2496.4,2496.3,2.18731]
[1750432147449,26.427,2496.4,2496.3,1.3862]
[1750432147631,3.2078,2496.5,2496.4,0.80109]
[1750432148347,3.2078,2496.5,2496.2,0.80115]
[1750432148348,29.6298,2496.5,2496.2,0.80115]
[1750432148647,0.80117,2496.2,2496.0,0.80119]
[1750432148838,27.22119,2496.1,2496.0,0.8012]
[1750432149038,26.42,2496.1,2496.0,0.8012]
[1750432149243,27.22121,2496.1,2495.9,0.80123]
[1750432149442,26.42,2496.1,2496.0,0.80121]
[1750432149638,3.2078,2496.5,2495.8,1.2726]
[1750432149843,26.419,2496.5,2496.4,0.80109]
[1750432150036,7.49,2496.7,2496.6,0.80102]
[1750432150239,29.6238,2496.9,2496.8,0.80096]
[1750432150945,3.2078,2496.9,2496.8,0.80096]
[1750432151243,29.6228,2496.9,2496.8,0.80096]
[1750432151450,29.6228,2496.9,2496.7,0.80097]
[1750432151451,0.80097,2496.8,2496.7,0.80097]
[1750432151741,29.6228,2496.9,2496.8,0.80096]
[1750432152137,0.80096,2496.8,2496.7,0.80097]
[1750432152350,29.6228,2496.9,2496.8,0.80096]
[1750432152844,30.42374,2496.9,2496.8,0.80096]
[1750432153042,0.80096,2496.8,2496.7,0.80097]
[1750432153343,10.6978,2497.3,2497.2,0.80083]
[1750432153550,3.2078,2497.6,2497.5,0.80073]
[1750432153747,3.2078,2497.9,2497.8,0.80064]
[1750432153941,29.6118,2497.9,2497.8,0.80064]
[1750432154248,29.6108,2498.3,2497.8,2.0016]
[1750432154447,26.403,2498.2,2498.1,0.80053]
[1750432154647,3.2078,2498.3,2497.9,1.3346]
[1750432154843,27.20252,2498.2,2498.0,0.80056]
[1750432155046,26.402,2498.2,2497.7,1.279]
[1750432155348,0.80056,2498.1,2497.9,0.8006]
[1750432155544,26.402,2498.2,2497.7,1.279]
[1750432155751,14.08892148,2498.0,2496.6,3.2078]
[1750432155946,3.2078,2497.3,2497.2,0.80083]
[1750432156250,3.2078,2497.3,2496.9,2.00231]
[1750432156251,29.6008,2497.3,2496.9,2.00232]
[1750432156453,26.393,2497.3,2497.2,0.80083]
[1750432156750,0.8009,2497.0,2496.4,2.00272]
[1750432156950,26.391,2496.9,2496.8,0.80096]
[1750432157147,26.391,2496.9,2496.7,0.80097]
[1750432157459,29.5988,2496.9,2496.7,0.80098]
[1750432157748,29.5988,2496.9,2496.5,1.279]
[1750432157941,29.5988,2496.9,2496.8,0.80096]
[1750432159252,29.5988,2496.9,2496.7,0.80097]
[1750432159448,26.391,2496.9,2496.8,0.80096]
[1750432160049,0.6541,2497.4,2496.7,3.2078]
[1750432160348,0.80084,2497.2,2497.0,0.80087]
[1750432160548,0.80085,2497.2,2497.0,0.80089]
[1750432160850,0.80087,2497.1,2496.9,0.8009]
[1750432161046,3.2078,2497.2,2496.8,1.3236]
[1750432161351,3.2078,2497.2,2496.9,0.80092]
[1750432161550,0.80087,2497.1,2496.9,0.8009]
[1750432161751,2.00232,2496.9,2496.4,4.00888]
[1750432161950,3.2078,2496.8,2496.1,3.8589]
[1750432162153,0.80106,2496.5,2496.2,1.3852]
[1750432162342,0.80106,2496.5,2495.8,2.00313]
[1750432162343,2.0028,2496.3,2495.8,3.2078]
[1750432162549,14.08892148,2496.1,2495.4,2.00352]
[1750432162753,3.2078,2495.8,2495.7,0.80129]
[1750432163055,30.38409,2495.8,2495.5,1.3852]
[1750432163357,29.5828,2495.8,2495.7,0.80131]
[1750432163554,29.5828,2495.8,2495.2,2.00368]
[1750432163555,29.5828,2495.8,2495.3,3.38876]
[1750432163853,29.5828,2495.8,2495.7,0.80131]
[1750432164053,29.5788,2495.8,2495.7,0.80131]
[1750432164249,3.2078,2495.8,2495.7,0.80131]
[1750432164453,3.2078,2496.1,2495.5,3.2078]
[1750432164648,3.2078,2496.1,2495.5,4.5412]
[1750432164848,0.80127,2495.9,2495.7,0.80129]
[1750432165055,0.80127,2495.9,2495.8,0.80128]
[1750432165056,26.373,2495.9,2495.8,0.80128]
[1750432165850,27.17425,2495.9,2495.7,0.80129]
[1750432166055,27.17425,2495.9,2495.6,0.80132]
[1750432166056,0.80128,2495.8,2495.6,0.80132]
[1750432166253,3.2078,2496.1,2495.5,1.3334]
[1750432166456,27.17025,2495.9,2495.7,0.80129]
[1750432166652,0.80129,2495.8,2495.5,1.3334]
[1750432166856,0.80132,2495.7,2495.2,5.21146]
[1750432167046,26.369,2495.9,2495.3,3.26728]
[1750432167254,26.369,2495.9,2495.8,0.80128]
[1750432167554,30.37805,2495.9,2495.7,0.80129]
[1750432167753,0.80129,2495.8,2495.6,0.80132]
[1750432167954,29.5768,2495.9,2495.8,0.80128]
[1750432168155,29.5768,2495.9,2495.5,1.2637]
[1750432168461,30.37806,2495.9,2495.7,0.80131]
[1750432168760,0.80131,2495.7,2495.2,5.21146]
[1750432168955,29.5768,2495.9,2495.3,0.80144]
[1750432169155,0.80131,2495.7,2495.3,1.2637]
[1750432169456,0.80131,2495.7,2495.6,0.80134]
[1750432169658,0.80131,2495.8,2495.6,0.80134]
[1750432170065,0.80131,2495.7,2495.6,0.80134]
[1750432170361,29.5768,2495.9,2495.3,1.2637]
[1750432170660,0.80141,2495.4,2495.3,1.2637]
[1750432170854,37.24312148,2495.5,2494.9,1.3467]
[1750432171173,0.80141,2495.4,2495.0,2.00384]
[1750432171356,38.53682148,2495.5,2494.9,1.3467]
[1750432171556,0.80142,2495.4,2494.9,1.3467]
[1750432171754,26.36,2495.4,2495.3,0.80144]
[1750432172160,3.2078,2495.6,2495.5,0.80137]
[1750432172358,29.5658,2495.6,2495.5,0.80137]
[1750432172862,26.356,2495.6,2495.1,6.55824]
[1750432173056,27.15736,2495.6,2495.5,0.80137]
[1750432173258,26.356,2495.6,2495.5,0.80137]
[1750432173459,29.5638,2495.6,2495.5,0.80137]
[1750432173654,29.5638,2495.6,2495.2,3.37417]
[1750432173655,30.36517,2495.6,2495.4,0.80139]
[1750432173962,30.36517,2495.6,2495.5,0.80137]
[1750432174273,29.5638,2495.6,2495.5,0.80137]
[1750432175065,29.5628,2495.6,2495.5,0.80137]
[1750432177560,29.5628,2495.6,2495.3,3.37409]
[1750432177561,30.36416,2495.6,2495.3,1.3705]
[1750432177867,30.36417,2495.6,2495.4,0.80138]
[1750432178066,30.36417,2495.6,2495.5,0.80138]
[1750432178361,29.5628,2495.6,2495.0,5.21165]
[1750432178664,29.5628,2495.6,2494.9,10.72197]
[1750432178859,29.5628,2495.6,2494.9,3.28197]
[1750432179060,30.9273,2495.6,2495.1,2.00375]
[1750432179254,30.9273,2495.6,2495.4,0.8014]
[1750432179459,30.9273,2495.6,2495.1,2.00377]
[1750432179460,31.72866,2495.6,2495.5,0.80138]
[1750432179765,0.80143,2495.4,2495.3,0.80143]
[1750432179963,37.22312148,2495.4,2494.8,3.95611]
[1750432180166,3.2078,2495.2,2495.1,0.80149]
[1750432180366,29.5488,2495.2,2495.1,0.80149]
[1750432180956,0.80143,2495.4,2495.3,0.80143]
[1750432181160,3.2078,2495.5,2495.4,0.80141]
[1750432181464,7.44,2496.0,2495.1,3.2078]
[1750432181663,7.44,2496.0,2495.9,0.80125]
[1750432181861,33.777,2496.0,2495.9,0.80125]
[1750432182255,34.57823,2496.0,2495.9,0.80125]
[1750432182462,33.777,2496.0,2495.9,0.80125]
[1750432183164,3.2078,2496.1,2496.0,0.80122]
[1750432183464,36.9798,2496.1,2496.0,0.80122]
[1750432183860,10.6478,2496.4,2496.1,2.00297]
[1750432184064,3.2078,2496.5,2496.4,0.80109]
[1750432184273,29.5378,2496.5,2495.8,3.28388]
[1750432184457,0.80113,2496.3,2496.2,0.80115]
[1750432184656,14.08892148,2496.3,2495.7,2.00321]
[1750432184860,3.2078,2496.1,2496.0,0.80122]
[1750432185468,29.5348,2496.1,2496.0,0.80122]
[1750432186470,29.5328,2496.1,2496.0,0.80122]
[1750432187162,30.33399,2496.1,2496.0,0.80122]
[1750432187562,29.5328,2496.1,2496.0,0.80122]
[1750432187970,30.33399,2496.1,2496.0,0.80122]
[1750432188166,0.80122,2496.0,2495.8,1.3037]
[1750432188375,3.2078,2496.1,2496.0,0.80122]
[1750432188869,26.317,2496.2,2496.1,0.80119]
[1750432189063,3.2078,2496.6,2496.2,2.00289]
[1750432189267,26.315,2496.5,2496.2,3.34188]
[1750432189462,26.315,2496.5,2496.4,0.80109]
[1750432190375,3.2078,2496.6,2496.5,0.80106]
[1750432190675,29.5198,2496.6,2496.5,0.80106]
[1750432190867,29.5198,2496.6,2496.3,1.339]
[1750432191174,29.5198,2496.6,2496.5,0.80106]
[1750432191572,29.5198,2496.6,2496.3,1.339]
[1750432191773,29.5198,2496.6,2496.2,0.80113]
[1750432191774,10.88112148,2496.4,2496.2,0.80113]
[1750432191973,26.309,2496.3,2496.2,0.80113]
[1750432192864,0.80115,2496.2,2496.1,0.80117]
[1750432193080,30.31794,2496.3,2496.2,0.80115]
[1750432193275,0.80115,2496.2,2496.1,0.80117]
[1750432193570,0.8012,2496.1,2496.0,0.80121]
[1750432194072,36.9558,2496.3,2495.4,2.00353]
[1750432194073,38.95862,2496.3,2495.4,2.00353]
[1750432194376,4.00907,2495.9,2495.5,2.00344]
[1750432194570,26.299,2495.8,2495.7,0.80129]
[1750432196175,26.297,2495.9,2495.8,0.80128]
[1750432196381,3.2078,2496.3,2496.2,0.80115]
[1750432196382,11.44792,2496.3,2496.2,0.80115]
[1750432196677,4.42908499,2496.3,2496.2,0.80115]
[1750432196882,36.9388,2496.3,2496.2,0.80115]
[1750432197070,36.9388,2496.3,2495.9,2.00307]
[1750432197270,37.73995,2496.3,2496.2,0.80115]
[1750432197470,36.9388,2496.3,2495.8,1.2764]
[1750432197671,36.9388,2496.3,2496.2,0.80115]
[1750432198079,7.439,2496.5,2496.4,0.80109]
[1750432198374,3.2078,2496.6,2496.3,2.00278]
[1750432198578,3.2078,2496.6,2496.5,0.80106]
[1750432199171,29.4938,2496.6,2496.5,0.80106]
[1750432199779,29.4938,2496.6,2496.1,0.80119]
[1750432199981,29.4938,2496.6,2496.5,0.80106]
[1750432200278,3.2078,2496.6,2496.5,0.80106]
[1750432200476,29.4878,2496.6,2496.5,0.80106]
[1750432202872,4.68241,2497.3,2496.5,12.21308]
[1750432203073,27.494094,2497.2,2496.9,2.0023]
[1750432203284,26.274,2497.2,2497.1,0.80087]
[1750432203479,10.6458,2497.3,2497.2,0.80083]
[1750432203675,1.3619,2497.6,2497.5,0.80074]
[1750432203676,3.2078,2497.6,2497.5,0.80074]
[1750432203884,3.2078,2498.4,2497.5,10.6458]
[1750432204089,3.2078,2498.7,2498.0,9.55010139]
[1750432204273,0.08004482,2498.6,2498.2,0.80049]
[1750432204577,0.08004482,2498.6,2498.1,1.3622]
[1750432204882,3.2078,2498.4,2498.0,0.80057]
[1750432205082,26.266,2498.3,2498.1,2.16272]
[1750432205277,26.265,2498.4,2498.2,1.3622]
[1750432205473,27.06546,2498.4,2498.2,1.3622]
[1750432205671,26.265,2498.4,2497.6,0.6922]
[1750432205872,3.2078,2498.3,2497.7,8.8002]
[1750432206081,0.80054,2498.2,2497.7,1.3622]
[1750432206270,3.34949,2498.5,2497.8,0.80061]
[1750432206473,3.34949,2498.5,2497.6,0.6922]
[1750432206474,14.07015336,2498.1,2497.6,0.6922]
[1750432206683,0.80064,2497.8,2497.5,3.2078]
[1750432206873,0.80064,2497.8,2497.5,4.00852]
[1750432207273,26.254,2497.9,2497.7,0.80066]
[1750432207588,34.43956,2498.1,2497.8,0.80062]
[1750432207785,0.80059,2498.0,2497.7,0.80067]
[1750432208377,0.80062,2497.9,2497.6,2.14649]
[1750432208771,33.639,2498.1,2497.6,1.3458]
[1750432208974,34.43956,2498.1,2497.8,0.80063]
[1750432209383,0.80064,2497.9,2497.7,1.3458]
[1750432209574,33.634,2498.0,2497.5,3.2078]
[1750432209777,0.80062,2497.9,2497.6,0.80067]
[1750432209978,33.634,2498.0,2497.6,2.08337]
[1750432210179,3.2078,2498.2,2497.6,2.08337]
[1750432210380,33.628,2497.9,2497.6,1.2827]
[1750432210884,0.8007,2497.7,2497.4,0.80074]
[1750432211188,0.80075,2497.5,2497.3,0.80079]
[1750432211383,7.385,2497.5,2497.2,4.00862]
[1750432211583,0.80078,2497.4,2497.2,4.00863]
[1750432211787,0.8008,2497.3,2497.2,3.2078]
[1750432211978,0.06933781,2497.6,2497.2,3.2078]
[1750432212184,34.42376,2497.5,2497.2,4.00861]
[1750432212381,0.8008,2497.3,2497.2,3.2078]
[1750432212588,0.80079,2497.4,2497.2,3.2078]
[1750432212785,33.623,2497.5,2497.2,4.00861]
[1750432213082,0.80078,2497.4,2497.2,4.00863]
[1750432213478,0.8008,2497.3,2497.2,3.2078]
[1750432215088,0.06933781,2497.6,2497.2,3.2078]
[1750432215286,0.06933781,2497.6,2497.4,0.80074]
[1750432215287,27.10305781,2497.6,2497.4,0.80074]
[1750432215588,27.10304781,2497.6,2497.4,0.80075]
[1750432215789,26.30233781,2497.6,2497.3,1.2812]
[1750432215989,26.30233781,2497.6,2497.2,3.2078]
[1750432215990,0.8008,2497.3,2497.2,3.2078]
[1750432216291,0.80079,2497.4,2497.2,4.00861]
[1750432216484,0.8009,2497.0,2496.9,3.2078]
[1750432217285,0.80103,2496.6,2496.5,3.2078]
[1750432217484,3.2078,2497.0,2496.5,3.2078]
[1750432217485,0.80095,2496.9,2496.5,3.2078]
[1750432217686,34.40996,2496.8,2496.7,0.80098]
[1750432217986,33.609,2496.8,2496.5,5.35724]
[1750432218190,0.80103,2496.6,2496.5,5.35724]
[1750432218686,33.608,2496.8,2496.6,0.80103]
[1750432218687,0.80101,2496.7,2496.6,0.80103]
[1750432219293,0.80103,2496.6,2496.5,5.35723]
[1750432219489,0.80103,2496.6,2496.5,4.5562]
[1750432219694,33.608,2496.8,2496.2,3.2078]
[1750432219885,33.606,2496.7,2496.6,0.80101]
[1750432220190,34.47634781,2496.7,2496.5,0.80104]
[1750432220391,34.47634781,2496.7,2496.6,0.80102]
[1750432220587,34.47634781,2496.7,2496.3,3.34201]
[1750432220588,33.67533781,2496.7,2496.5,0.80103]
[1750432220889,33.67533781,2496.7,2496.3,1.3392]
[1750432221190,0.80108,2496.5,2496.3,1.3392]
[1750432221385,35.67785781,2496.7,2496.3,1.3392]
[1750432221589,38.88565781,2496.7,2496.3,2.14032]
[1750432221786,0.80107,2496.5,2496.4,0.80109]
[1750432222400,36.88313781,2496.7,2496.6,0.80103]
[1750432222401,26.28533781,2496.7,2496.6,0.80103]
[1750432222897,26.215,2497.8,2497.1,2.00216]
[1750432223195,7.385,2497.9,2497.8,0.80062]
[1750432223390,7.385,2497.9,2497.8,0.80064]
[1750432223786,11.39342,2497.9,2497.5,1.3095]
[1750432224091,7.385,2497.9,2497.5,1.3095]
[1750432224284,10.5928,2497.9,2497.5,1.3095]
[1750432224486,4.00845,2497.8,2497.5,1.3095]
[1750432224694,26.212,2497.7,2497.6,0.80067]
[1750432225991,26.212,2497.7,2497.3,3.8518]
[1750432226289,26.212,2497.7,2497.6,0.8007]